Cogmind - Beta 15 @@@ ROGUE MODE // 2025.06.02 @ 23:30:51 Player: Pekk-R-INE-1 Result: Destroyed by H-77 Assassin with Coil Gun Performance ------------- Evolutions (6) 3000 Regions Visited (11) 2200 Robots Destroyed (55) 275 Value Destroyed (1995) 1995 Prototype IDs (6) 120 Alien Tech Used (0) 0 Bonus (800) 800 TOTAL SCORE: 8390 Bonus ------- Registered with UFD 300 Met Optimus in HQ 500 Cogmind --------- Core Integrity 0/1150 Matter 34/300 Energy 49/100 System Corruption 0% Temperature Warm (100) Movement Core (50) Location -4/Factory Parts ------- > --- POWER (2) -------- (None) > --- PROPULSION (4) --- (None) > --- UTILITY (11) ----- (None) > --- WEAPON (2) ------- (None) > --- INVENTORY (5) ---- Large Storage Unit Improved Signal Interpreter Peak State ------------ > --- POWER ------------ Improved Deuterium Engine Makeshift Power Source > --- PROPULSION ------- Carbon-fiber Leg Carbon-fiber Leg Flexi-carbon Leg Thunder Leg > --- UTILITY ---------- Scrap Suit Large Storage Unit Advanced Visual Processing Unit 0b10 Decoder Chip [Skirmisher] Improved Transmission Jammer Makeshift Cloaking Device Makeshift Light Armor Plating A0-MCA's Component Scanner > --- WEAPON ----------- High-powered Shock Rifle KE Penetrator > --- INVENTORY -------- Carbon-fiber Leg Improved Heat Sink Improved Signal Interpreter Advanced Targeting Computer Improved Kinecellerator Improved Transmission Jammer Cloaking Device Improved Light Armor Plating Makeshift Hacking Suite Makeshift Hacking Suite Neutron Cannon Assault Cannon EMP Blaster Grenade Launcher [Rating: 82] Favorites ----------- Power Ion Engine Engine Ion Engine Power Core Light Nuclear Core Reactor Cold Fusion Reactor Propulsion Light Treads Treads Light Treads Leg Carbon-fiber Leg Wheel Armored Wheel Hover Unit Gravmag System Utility Large Storage Unit Device Scrap Suit Storage Large Storage Unit Processor Advanced Visual Processing Unit Protection Light Armor Plating Weapon Assault Rifle Energy Gun Particle Gun Energy Cannon Neutron Cannon Ballistic Gun Assault Rifle Ballistic Cannon Assault Cannon Launcher Grenade Launcher Impact Weapon Mace Slashing Weapon Makeshift Axe Build | -11 -10 -10 -10 -9 -6 -6 -6 -5 -5 -5 -4 ------- Run | Yrd Mat Min Sub Scr Fac Low Low Fac Upp Upp Fac Slots Evolved 12 | . . . . . 8 . . 2 . . 2 Power 1 | . . . . . 1 . . . . . . Propulsion 2 | . . . . . 2 . . . . . . Utility 9 | . . . . . 5 . . 2 . . 2 Weapon . | . . . . . . . . . . . . Parts Attached 77 | 7 10 3 1 8 16 12 . 6 5 1 8 Power 7 | 1 1 . . 1 1 2 . . . . 1 Engine 4 | 1 . . . 1 . 2 . . . . . Core 1 | . 1 . . . . . . . . . . Reactor 2 | . . . . . 1 . . . . . 1 Propulsion 21 | 2 2 2 . 3 5 4 . 1 . . 2 Treads 7 | 2 2 2 . 1 . . . . . . . Leg 5 | . . . . . . 4 . 1 . . . Wheel 3 | . . . . 2 1 . . . . . . Hover 6 | . . . . . 4 . . . . . 2 Flight . | . . . . . . . . . . . . Utility 30 | 2 5 . . 2 7 2 . 4 3 1 4 Device 12 | 1 . . . . 3 . . 3 1 1 3 Storage 5 | 1 2 . . 2 . . . . . . . Processor 5 | . 1 . . . 2 . . 1 1 . . Hackware . | . . . . . . . . . . . . Protection 8 | . 2 . . . 2 2 . . 1 . 1 Artifact . | . . . . . . . . . . . . Weapon 19 | 2 2 1 1 2 3 4 . 1 2 . 1 Energy Gun 5 | 1 1 . . 1 1 . . 1 . . . Energy Cannon 2 | . . . . . . . . . 1 . 1 Ballistic Gun 6 | 1 1 . 1 . 1 1 . . 1 . . Ballistic Cannon 1 | . . . . . . 1 . . . . . Launcher 2 | . . 1 . . 1 . . . . . . Special Weapon . | . . . . . . . . . . . . Impact Weapon 1 | . . . . 1 . . . . . . . Slashing Weapon 2 | . . . . . . 2 . . . . . Piercing Weapon . | . . . . . . . . . . . . Special Melee Weapon . | . . . . . . . . . . . . Unidentified Prototypes . | . . . . . . . . . . . . Parts Lost 36 | . 1 . . . 3 5 . . 14 2 11 Power 3 | . . . . . . . . . 2 . 1 Propulsion 11 | . . . . . 1 3 . . 4 1 2 Utility 14 | . . . . . 1 1 . . 5 . 7 Weapon 8 | . 1 . . . 1 1 . . 3 1 1 Highest Loss Streak 12 | . 1 . . . 2 4 . . 12 2 11 To Critical Strikes . | . . . . . . . . . . . . Average Backups 9 | 2 8 9 8 9 8 13 14 14 9 5 4 Power . | . 1 . . . . . . . . . . Propulsion . | . 1 1 . . . . . . . . . Utility 5 | . 4 5 6 6 3 6 8 8 7 4 3 Weapon 2 | . 1 2 2 2 2 4 5 5 2 1 . Tool/Special . | . . . . . . . . . . . . Unused Backups 11 | . 4 1 . 1 1 . . . . 2 2 Power 2 | . 1 . . . 1 . . . . . . Propulsion 1 | . 1 . . . . . . . . . . Utility 7 | . 2 1 . . . . . . . 2 2 Weapon 1 | . . . . 1 . . . . . . . Tool/Special . | . . . . . . . . . . . . Average Slot Usage (%) 90 | . 99 100 100 100 79 86 93 91 70 50 42 Engine 9 | . 9 14 14 14 5 4 13 11 3 . . Treads 14 | . 28 28 28 20 . . . . . . . Leg 4 | . . . . . . 11 26 23 11 1 . Wheel 3 | . . . . 7 15 . . . . . . Hover 2 | . . . . . 4 12 . . . . 4 Device 5 | . 4 . . . 10 14 6 15 8 8 11 Storage 10 | . 14 14 14 14 6 6 6 5 5 2 . Processor 8 | . 3 14 4 . 10 13 13 13 21 23 20 Protection 8 | . 5 . 9 14 10 5 13 7 6 5 4 Energy Gun 9 | . 12 14 14 14 5 3 . 4 1 . . Ballistic Gun 9 | . 15 2 9 13 5 5 1 4 3 5 . Launcher 1 | . . 11 4 . . . . . 3 1 . Peak Build Rating 82 | 7 11 10 10 17 62 66 64 82 82 43 66 Average Rating 29 | 3 9 9 10 11 38 62 63 78 56 41 48 On Entrance 34 | . 7 9 10 10 17 62 64 63 82 48 42 Naked Turns 6 | . . . . . . . . . . . 6 Heaviest Build 63 | 14 23 21 23 37 47 63 55 60 56 33 23 Greatest Support 73 | 40 40 40 40 40 44 71 65 73 73 15 11 Greatest Overweight (x) 3 | . . . . 2 2 3 . . 2 3 3 Average Overweight (x) . | . . . . . . . . . 1 2 . Largest Inventory Capacity 15 | 8 10 10 10 15 15 15 15 15 15 15 5 Average Capacity 11 | 5 9 10 10 11 15 15 15 15 15 9 5 Most Carried 15 | 5 10 10 10 15 15 15 15 15 15 7 5 Average Carried 10 | 3 8 9 9 10 9 14 15 14 9 5 4 Final Capacity 15 | 8 10 10 10 15 15 15 15 15 15 5 5 Final Carried 15 | 3 10 10 9 15 12 15 15 15 7 5 2 Class Distribution -------------------- 69% | Mutant 16% | Derelict-Mutant 11% | Scavenger-Mutant Dominant Class ---------------- Mutant | -10/Materials Mutant | -10/Mines Mutant | -10/Subcaves Mutant | -9/Scraptown Derelict-Mutant | -6/Factory Mutant | -6/Lower Caves Scavenger-Mutant | -6/Lower Caves Scavenger-Mutant | -5/Factory Mutant | -5/Upper Caves Infiltrator-Mutant | -5/Upper Caves Infiltrator-Mutant | -4/Factory Resources | -11 -10 -10 -10 -9 -6 -6 -6 -5 -5 -5 -4 ----------- Run | Yrd Mat Min Sub Scr Fac Low Low Fac Upp Upp Fac Matter Collected 1849 | 273 223 8 77 65 296 393 20 155 318 21 . Remotely . | . . . . . . . . . . . . Salvage Created 2389 | 53 686 19 49 . 389 658 56 . 334 100 45 Parts 106 | 5 34 1 5 . 12 24 1 . 11 10 3 Haulers Intercepted 1 | . 1 . . . . . . . . . . Recyclers Shooed 2 | . 2 . . . . . . . . . . Parts Field Recycled . | . . . . . . . . . . . . Retrieved Matter . | . . . . . . . . . . . . Parts Self-Destructed 38 | . . . 5 . . 19 6 . 2 6 . Prevented 13 | . . . . . . 3 1 . 9 . . Kills | -11 -10 -10 -10 -9 -6 -6 -6 -5 -5 -5 -4 ------- Run | Yrd Mat Min Sub Scr Fac Low Low Fac Upp Upp Fac Combat Hostiles Destroyed 48 | . 11 2 1 . 6 11 . . 7 8 2 Melee 2 | . . . . . . 2 . . . . . Guns 23 | . 11 1 1 . 3 4 . . 1 2 . Cannons 7 | . . . . . . 5 . . . . 2 AOE 13 | . . 1 . . 1 . . . 5 6 . Classes Destroyed 11 | 1 5 . 1 . 1 2 . . 1 . . Tunneler 2 | 2 . . . . . . . . . . . Hauler 1 | . 1 . . . . . . . . . . Recycler 2 | . 2 . . . . . . . . . . Watcher 2 | . 2 . . . . . . . . . . Swarmer 16 | . 3 2 . . . . . . 1 8 2 Grunt 17 | . 8 . . . 3 3 . . 3 . . Brawler 1 | . . . . . . 1 . . . . . Duelist 6 | . . . . . . 6 . . . . . Sentry 5 | . . . . . 3 1 . . 1 . . Hunter 2 | . . . . . . . . . 2 . . Subdweller 1 | . . . 1 . . . . . . . . Best Kill Streak 8 | 2 6 1 1 . 2 6 . . 3 8 2 Combat Bots Only 8 | . 6 1 1 . 3 6 . . 3 8 2 Max Kills in Single Turn 3 | 1 2 1 1 . 1 2 . . 2 3 1 Gunslinging . | . . . . . . . . . . . . Exploded 3 | . . 1 . . 1 . . . 2 3 . Melee 1 | . . . . . . 1 . . . . . Uniques/NPCs Destroyed . | . . . . . . . . . . . . Combat | -11 -10 -10 -10 -9 -6 -6 -6 -5 -5 -5 -4 -------- Run | Yrd Mat Min Sub Scr Fac Low Low Fac Upp Upp Fac Hostile Shots Fired 640 | . 64 5 3 . 153 47 2 . 138 34 194 Missed 242 | . 16 1 2 . 76 11 . . 58 10 68 Hits 398 | . 48 4 1 . 77 36 2 . 80 24 126 Melee 9 | . . . . . . 9 . . . . . Projectile 389 | . 48 4 1 . 77 27 2 . 80 24 126 Critical Strikes 20 | . . . 1 . 2 5 . . 3 1 8 Damage Taken 6426 | . 541 45 22 . 651 867 39 . 1691 374 2196 Core 1879 | . 97 . . . 53 208 21 . 229 103 1168 Absorbed by Shields . | . . . . . . . . . . . . Redirected to Shielding 22 | . . . . . 22 . . . . . . Ignored by Resistances 5 | . . . . . . . . . 5 . . Regen/Repaired (Parts) 47 | . . . . . 17 . . 10 20 . . Core Remaining (%) 73 | 100 . . . 61 . . 66 . . 66 . Volleys Fired 165 | 3 44 4 3 . 36 26 . . 27 14 8 Largest 2 | 2 2 2 2 . 2 2 . . 2 2 1 Hottest 125 | 60 85 95 85 . 125 93 . . 123 60 90 Shots Fired 307 | 6 87 8 6 . 70 52 . . 50 20 8 Gun 249 | 6 87 6 6 . 66 35 . . 29 14 . Cannon 32 | . . . . . . 17 . . 7 . 8 Launcher 26 | . . 2 . . 4 . . . 14 6 . Special . | . . . . . . . . . . . . Kinetic 177 | 3 62 2 3 . 33 43 . . 17 14 . Thermal 34 | . 9 4 3 . 3 . . . 7 . 8 Explosive 13 | . . 2 . . . . . . 5 6 . Electromagnetic 83 | 3 16 . . . 34 9 . . 21 . . Robot Hit Streak 28 | 2 7 1 3 . 17 28 . . 11 3 2 Robot Miss Streak 3 | 1 3 3 1 . 3 3 . . 2 3 2 Penetration Max 1 | . . . . . . 1 . . 1 . . Secondary Targets 6 | . 4 . . . 1 1 . . . . . Max Gunslinging Chain 1 | . 1 . . . 1 1 . . . . . Shots Hit Robots 216 | 3 52 2 4 . 59 43 3 . 35 11 4 Core Hits 109 | 3 29 2 2 . 17 20 . . 22 12 2 Critical Kills . | . . . . . . . . . . . . Critical Parts Destroyed 1 | . . . . . 1 . . . . . . Critical Strikes 6 | . 1 . . . 2 3 . . . . . Burn 1 | . 1 . . . . . . . . . . Destroy 2 | . . . . . 1 1 . . . . . Blast 1 | . . . . . . 1 . . . . . Corrupt 1 | . . . . . 1 . . . . . . Sever 1 | . . . . . . 1 . . . . . Melee Attacks 10 | . . . . . . 6 4 . . . . Impact . | . . . . . . . . . . . . Slashing 10 | . . . . . . 6 4 . . . . Piercing . | . . . . . . . . . . . . Sneak Attacks 6 | . . . . . . 6 . . . . . Combat Hostiles . | . . . . . . . . . . . . Follow-up Attacks . | . . . . . . . . . . . . Damage Inflicted 5597 | 37 615 117 53 . 982 1321 164 . 1395 688 225 Guns 2944 | 37 615 11 53 . 909 605 . . 507 207 . Cannons 727 | . . . . . . 354 . . 148 . 225 Explosions 1400 | . . 106 . . 73 . . . 740 481 . Melee 526 | . . . . . . 362 164 . . . . Ramming . | . . . . . . . . . . . . Kinetic 2225 | 13 393 11 40 . 355 834 . . 372 207 . Thermal 544 | . 55 . 13 . 51 . . . 200 . 225 Explosive 960 | . . 106 . . . . . . 373 481 . Electromagnetic 1342 | 24 167 . . . 576 125 . . 450 . . Impact . | . . . . . . . . . . . . Slashing 526 | . . . . . . 362 164 . . . . Piercing . | . . . . . . . . . . . . Highest Corruption . | . . . . . . . . . . . . Average Corruption . | . . . . . . . . . . . . Corruption Purged . | . . . . . . . . . . . . Corruption Blocked . | . . . . . . . . . . . . Overload Shots . | . . . . . . . . . . . . Overflow Damage 108 | . . . . . . 8 96 . . 4 . Projectiles . | . . . . . . . . . . . . Explosions 4 | . . . . . . . . . . 4 . Melee 104 | . . . . . . 8 96 . . . . Knockbacks 6 | . . . . . . 6 . . . . . Impact . | . . . . . . . . . . . . Kinetic 5 | . . . . . . 5 . . . . . Secondary 1 | . . . . . . 1 . . . . . Self-Inflicted Damage 139 | . . 14 . . . . . . 113 12 . Shots 7 | . . 1 . . . . . . 5 1 . Rammed . | . . . . . . . . . . . . Targets Rammed . | . . . . . . . . . . . . Kicked . | . . . . . . . . . . . . Crushed . | . . . . . . . . . . . . Highest Temperature 286 | 20 99 66 . . 164 13 1 . 248 . 286 Average Temperature 51 | 12 25 30 . . 31 5 1 . 82 . 138 Received Heat Transfer 1514 | . 228 . . . 210 234 9 . 421 . 412 Siege Activations . | . . . . . . . . . . . . Martial Activations . | . . . . . . . . . . . . Shielding Activations . | . . . . . . . . . . . . Robots Disrupted 1 | . . . . . 1 . . . . . . Combat Hostiles 1 | . . . . . 1 . . . . . . Robots Corrupted 3 | . . . . . 2 . . . 1 . . Combat Hostiles 3 | . . . . . 2 . . . 1 . . Parts Fried 8 | . . . . . 4 . . . 4 . . Impact Corruptions . | . . . . . . . . . . . . Robots Melted . | . . . . . . . . . . . . Combat Hostiles . | . . . . . . . . . . . . Parts Melted . | . . . . . . . . . . . . Heat Transferred 470 | . 222 . 37 . 111 . . . 100 . . Parts Sabotaged . | . . . . . . . . . . . . Parts Stolen . | . . . . . . . . . . . . Parts Stripped . | . . . . . . . . . . . . Power Chain Reactions 2 | . . . . . . . . . 2 . . Alert | -11 -10 -10 -10 -9 -6 -6 -6 -5 -5 -5 -4 ------- Run | Yrd Mat Min Sub Scr Fac Low Low Fac Upp Upp Fac Maximum Alert Level . | . . . . . . . . . . . . Low Security (%) 100 | 100 100 100 . . 100 . . 100 . . 100 Level 1 . | . . . . . . . . . . . . Level 2 . | . . . . . . . . . . . . Level 3 . | . . . . . . . . . . . . Level 4 . | . . . . . . . . . . . . Level 5 . | . . . . . . . . . . . . High Security . | . . . . . . . . . . . . Max Security . | . . . . . . . . . . . . Peak Influence 179 | 10 116 50 . . 60 . . 40 . . 179 Initial 69 | . 6 . . . . . . 40 . . 69 Average 17 | 1 20 6 . . 13 . . 5 . . 76 Influence Increases 1779 | 10 312 84 . . 204 355 65 37 280 180 252 Destroy 0b10 Robot/C 940 | . 220 40 . . 120 220 . . 140 160 40 Destroy 0b10 Robot/NC 40 | 10 25 . . . . . 5 . . . . Destroy Leader 126 | . 46 . . . 40 . . . 20 20 . Successful Hack 86 | . 5 . . . 44 . . 37 . . . Destroy Structure 17 | . 1 14 . . . . . . . . 2 Partial Spotted 15 | . . . . . . . . . . . 15 Lose Combat Pursuer 555 | . 15 30 . . . 135 60 . 120 . 195 Influence Decreases 1678 | . 322 84 . . 204 292 63 102 280 70 261 Entered New Map 83 | . 4 . . . . . 13 25 . . 41 Time Decay 1275 | . 318 84 . . 184 242 50 77 160 50 110 Lost Part 320 | . . . . . 20 50 . . 120 20 110 Squads Dispatched 5 | . . 1 . . 2 . . 2 . . . Investigation 2 | . . 1 . . 1 . . . . . . Extermination 2 | . . . . . 1 . . 1 . . . Reinforcement 1 | . . . . . . . . 1 . . . Assault . | . . . . . . . . . . . . Garrison . | . . . . . . . . . . . . Intercept . | . . . . . . . . . . . . Searches Triggered . | . . . . . . . . . . . . Construction Impeded . | . . . . . . . . . . . . Haulers Reinforced . | . . . . . . . . . . . . Active Scanning Responses . | . . . . . . . . . . . . Cargo Convoy Interrupts . | . . . . . . . . . . . . Stealth | -11 -10 -10 -10 -9 -6 -6 -6 -5 -5 -5 -4 --------- Run | Yrd Mat Min Sub Scr Fac Low Low Fac Upp Upp Fac Distress Signals 3 | . 2 . . . . . . . . . 1 Communications Jammed . | . . . . . . . . . . . . Distress Signals . | . . . . . . . . . . . . Times Spotted 94 | . 16 4 3 . 6 10 4 1 15 9 26 Peak Tracking Total 16 | . 6 3 2 . 3 9 4 1 4 5 16 Tactical Retreats 14 | . 1 1 . . . 3 1 . 5 . 3 Traps | -11 -10 -10 -10 -9 -6 -6 -6 -5 -5 -5 -4 ------- Run | Yrd Mat Min Sub Scr Fac Low Low Fac Upp Upp Fac Traps Triggered . | . . . . . . . . . . . . Indirectly . | . . . . . . . . . . . . Trap Hack Attempts . | . . . . . . . . . . . . Triggered . | . . . . . . . . . . . . Disarmed . | . . . . . . . . . . . . Reprogrammed . | . . . . . . . . . . . . Reused . | . . . . . . . . . . . . Traps Extracted . | . . . . . . . . . . . . Installed . | . . . . . . . . . . . . Triggered . | . . . . . . . . . . . . Machines | -11 -10 -10 -10 -9 -6 -6 -6 -5 -5 -5 -4 ---------- Run | Yrd Mat Min Sub Scr Fac Low Low Fac Upp Upp Fac Machines Disabled 2 | . . . . . . 1 . . 1 . . Max in Single Turn 1 | . . . . . . 1 . . 1 . . Machines Repaired . | . . . . . . . . . . . . Machines Dismantled . | . . . . . . . . . . . . Machines Sabotaged . | . . . . . . . . . . . . Overloaded Fab Kills . | . . . . . . . . . . . . Hacking | -11 -10 -10 -10 -9 -6 -6 -6 -5 -5 -5 -4 --------- Run | Yrd Mat Min Sub Scr Fac Low Low Fac Upp Upp Fac Machines Accessed 19 | . 4 1 . 4 5 3 . 2 . . . Terminals 9 | . 4 . . . 3 . . 2 . . . Fabricators . | . . . . . . . . . . . . Repair Stations . | . . . . . . . . . . . . Recycling Units 1 | . . . . . 1 . . . . . . Scanalyzers 1 | . . . . . 1 . . . . . . Garrison Access . | . . . . . . . . . . . . Total Hacks 47 | . 6 1 . 21 12 5 . 2 . . . Successful 40 | . 3 1 . 21 8 5 . 2 . . . Failed 7 | . 3 . . . 4 . . . . . . Catastrophic 2 | . 2 . . . . . . . . . . Database Lockouts . | . . . . . . . . . . . . Manual 9 | . 5 . . . 4 . . . . . . Terminals 13 | . 6 . . . 5 . . 2 . . . Fabricators . | . . . . . . . . . . . . Repair Stations . | . . . . . . . . . . . . Recycling Units 4 | . . . . . 4 . . . . . . Scanalyzers 3 | . . . . . 3 . . . . . . Garrison Access . | . . . . . . . . . . . . Terminal Hacks 32 | . 1 1 . 21 2 5 . 2 . . . Record 25 | . . . . 21 . 3 . 1 . . . Robot Analysis 1 | . . . . . 1 . . . . . . Open Door 3 | . . 1 . . . 2 . . . . . Branch Access Points 2 | . . . . . 1 . . 1 . . . Alert Level 1 | . 1 . . . . . . . . . . Fabricator Hacks . | . . . . . . . . . . . . Repair Station Hacks . | . . . . . . . . . . . . Recycling Unit Hacks 2 | . . . . . 2 . . . . . . Report Inventory 1 | . . . . . 1 . . . . . . Retrieve Components 1 | . . . . . 1 . . . . . . Scanalyzer 2 | . . . . . 2 . . . . . . Insert Component 1 | . . . . . 1 . . . . . . Analyze 1 | . . . . . 1 . . . . . . Garrison Access Hacks . | . . . . . . . . . . . . Unauthorized Hacks 4 | . 2 . . . 2 . . . . . . Terminals 3 | . 2 . . . 1 . . . . . . Botnet 3 | . 2 . . . 1 . . . . . . Fabricators . | . . . . . . . . . . . . Repair Stations . | . . . . . . . . . . . . Recycling Units 1 | . . . . . 1 . . . . . . Fedlink 1 | . . . . . 1 . . . . . . Scanalyzers . | . . . . . . . . . . . . Garrison Access . | . . . . . . . . . . . . Data Cores Recovered . | . . . . . . . . . . . . Used . | . . . . . . . . . . . . Hacking Detections 7 | . 2 . . . 3 . . 2 . . . Full Trace Events . | . . . . . . . . . . . . Feedback Events . | . . . . . . . . . . . . Feedback Blocked . | . . . . . . . . . . . . Robot Schematics Acquired . | . . . . . . . . . . . . Robots Built . | . . . . . . . . . . . . Authchips . | . . . . . . . . . . . . Time . | . . . . . . . . . . . . Total Robot Build Rating . | . . . . . . . . . . . . Part Schematics Acquired 1 | . . . . . 1 . . . . . . Parts Built . | . . . . . . . . . . . . Authchips . | . . . . . . . . . . . . Time . | . . . . . . . . . . . . Total Part Build Rating . | . . . . . . . . . . . . Parts Repaired . | . . . . . . . . . . . . Time . | . . . . . . . . . . . . Parts Recycled . | . . . . . . . . . . . . Recycled Matter . | . . . . . . . . . . . . Retrieved Matter . | . . . . . . . . . . . . Retrieved Components 1 | . . . . . 1 . . . . . . Parts Scanalyzed 1 | . . . . . 1 . . . . . . Part Schematics Acquired 1 | . . . . . 1 . . . . . . Parts Damaged . | . . . . . . . . . . . . Bothacking | -11 -10 -10 -10 -9 -6 -6 -6 -5 -5 -5 -4 ------------ Run | Yrd Mat Min Sub Scr Fac Low Low Fac Upp Upp Fac Used RIF Installer . | . . . . . . . . . . . . Robots Hacked . | . . . . . . . . . . . . Non-combat . | . . . . . . . . . . . . Combat . | . . . . . . . . . . . . Robot Hacks Applied . | . . . . . . . . . . . . Relay Couplers Released . | . . . . . . . . . . . . Fabnet Peak Effective % . | . . . . . . . . . . . . Robots Rewired . | . . . . . . . . . . . . Allies Hacked . | . . . . . . . . . . . . Hacks Repelled . | . . . . . . . . . . . . Allies | -11 -10 -10 -10 -9 -6 -6 -6 -5 -5 -5 -4 -------- Run | Yrd Mat Min Sub Scr Fac Low Low Fac Upp Upp Fac Total Allies . | . . . . . . . . . . . . Largest Group . | . . . . . . . . . . . . Highest-Rated Group . | . . . . . . . . . . . . Highest-Rated Ally . | . . . . . . . . . . . . Total Orders . | . . . . . . . . . . . . Ally Attacks . | . . . . . . . . . . . . Total Damage . | . . . . . . . . . . . . Kills . | . . . . . . . . . . . . Allies Corrupted . | . . . . . . . . . . . . Allies Melted . | . . . . . . . . . . . . Intel | -11 -10 -10 -10 -9 -6 -6 -6 -5 -5 -5 -4 ------- Run | Yrd Mat Min Sub Scr Fac Low Low Fac Upp Upp Fac Active Infowar (turns) 3787 | 4 509 . . . 699 936 105 504 712 101 217 Optics 3274 | . . . . . 699 936 105 504 712 101 217 Terrain 624 | . . . . . 111 513 . . . . . Seismic 513 | 4 509 . . . . . . . . . . Decoding 1276 | . . . . . . . . 246 712 101 217 Cloaking 634 | . . . . . . . . 504 122 1 7 Jamming 491 | . . . . . . . . 228 251 . 12 Robot Analysis Total 1 | . . . . . 1 . . . . . . Derelict Logs Recovered 2 | . . . . . . 1 . . 1 . . Drone Launches . | . . . . . . . . . . . . Drone Recoveries . | . . . . . . . . . . . . Decoded 0b10 Intel 6 | . . . . . . . . 2 . . 4 Garrisons 1 | . . . . . . . . 1 . . . Patrols 4 | . . . . . . . . . . . 4 Reinforcements 1 | . . . . . . . . 1 . . . Exploration | -11 -10 -10 -10 -9 -6 -6 -6 -5 -5 -5 -4 ------------- Run | Yrd Mat Min Sub Scr Fac Low Low Fac Upp Upp Fac Turns Passed 7872 | 76 1569 611 243 2084 708 936 105 504 712 101 223 Spaces Moved 5219 | 42 864 357 145 1501 540 667 81 352 317 31 322 Core 57 | 14 . . . . . . . . . 27 16 Treads 2315 | 28 864 357 145 921 . . . . . . . Legs 1065 | . . . . . . 311 81 352 317 4 . Wheels 1016 | . . . . 580 436 . . . . . . Hover 766 | . . . . . 104 356 . . . . 306 Flight . | . . . . . . . . . . . . Fastest Speed 40 | 50 160 160 160 100 90 108 120 120 120 200 40 Average Speed 133 | 123 160 160 160 136 98 115 120 120 194 207 51 Slowest Speed 260 | 160 160 160 160 160 176 240 120 120 260 260 200 Overloaded Moves . | . . . . . . . . . . . . Propulsion Burnouts . | . . . . . . . . . . . . Robots Hopped . | . . . . . . . . . . . . Potential Cave-ins . | . . . . . . . . . . . . Cave-ins Triggered . | . . . . . . . . . . . . Exploration Rate (%) 36 | 4 96 75 11 89 10 72 9 10 50 8 9 Regions Visited 11 Branch Regions 7 Pre-discovered Areas . | . . . . . . . . . . . . Known Exits Taken 4 | . 1 1 . . 1 . . 1 . . . Unknown Exits Taken 7 | 1 . . 1 1 . 1 1 . 1 1 . Scrap Searched 7 | . . 1 . 5 . 1 . . . . . Spaces Dug . | . . . . . . . . . . . . Terrain Destroyed 86 | . . 17 . . . 3 . . 29 36 1 Melee . | . . . . . . . . . . . . Projectile 8 | . . . . . . 3 . . 3 1 1 AOE 78 | . . 17 . . . . . . 26 35 . Terrain Rammed . | . . . . . . . . . . . . Walls Destroyed . | . . . . . . . . . . . . Machines Disabled . | . . . . . . . . . . . . Actions | -11 -10 -10 -10 -9 -6 -6 -6 -5 -5 -5 -4 --------- Run | Yrd Mat Min Sub Scr Fac Low Low Fac Upp Upp Fac Total 5807 | 60 974 391 149 1531 639 767 85 434 359 50 368 Wait 195 | . 28 16 . . 33 33 . 60 . . 25 Move 5208 | 41 863 356 144 1500 539 666 80 351 316 30 322 Hop . | . . . . . . . . . . . . Pick Up 69 | 9 16 5 . 11 7 10 . 8 . 2 1 Fast Attach 18 | 1 1 . . . 4 6 . . . . 6 Attach 33 | 6 1 . . . 7 2 . 5 8 1 3 Detach . | . . . . . . . . . . . . Swap 59 | . 9 3 2 10 9 11 2 4 8 1 . Drop 51 | . 12 7 . 10 4 7 . 6 . 2 3 Fire 165 | 3 44 4 3 . 36 26 . . 27 14 8 Melee 9 | . . . . . . 6 3 . . . . Ram . | . . . . . . . . . . . . Kick . | . . . . . . . . . . . . Crush . | . . . . . . . . . . . . Escape Stasis . | . . . . . . . . . . . . Rewire . | . . . . . . . . . . . . Trap . | . . . . . . . . . . . . Miscellaneous . | . . . . . . . . . . . . Route ------- -11/Scrapyard -10/Materials (discovered 5 exits: *Mat x3 / *Min x2) -10/Mines (discovered 3 exits: *Mat x2 / *Sub) -10/Subcaves -9/Scraptown (discovered 2 exits: *Fac x2) -6/Factory (discovered 2 exits: *Low x2) -6/Lower Caves -6/Lower Caves -5/Factory (discovered 3 exits: *Fac / *Upp x2) -5/Upper Caves -5/Upper Caves -4/Factory History --------- Turn | Location | Event 9 | -11/Scrapyard | Discovered new exit (range 13) 77 | -11/Scrapyard | Entered Materials 109 | -10/Materials | Discovered new exit (range 16) 271 | -10/Materials | Discovered new exit (range 11) 309 | -10/Materials | Build established: Mutant 475 | -10/Materials | Discovered new exit (range 16) 677 | -10/Materials | Derelicts attacked the area 888 | -10/Materials | Discovered new exit (range 10) 1201 | -10/Materials | Discovered new exit (range 4) 1260 | -10/Materials | Identified exit to Materials 1645 | -10/Materials | Identified exit to Mines 1646 | -10/Materials | Entered Mines 1675 | -10/Mines | Discovered exit to Materials (range 10) 1682 | -10/Mines | Received a Rocket Launcher from a helpful Derelict 1759 | -10/Mines | Met a Derelict shopkeep closing up shop 2044 | -10/Mines | Discovered exit to Materials (range 6) 2202 | -10/Mines | Found a Scrap Suit stashed away for nefarious purposes 2208 | -10/Mines | Found Scrap Suit 2236 | -10/Mines | Discovered new exit (range 11) 2255 | -10/Mines | Identified exit to Subcaves 2257 | -10/Mines | Entered Subcaves 2258 | -10/Subcaves | Approached by a straggling Scientist 2273 | -10/Subcaves | A swath of the cavern ceiling suddenly collapsed 2434 | -10/Subcaves | Curiously followed by a Cobbler waking with a query about "LVR3C" 2463 | -10/Subcaves | Scientist uncovered a shortcut to Scraptown 2500 | -10/Subcaves | Entered Scraptown 2726 | -9/Scraptown | Visited UFD Registry 2726 | -9/Scraptown | Registered with UFD as "Hardslicer" 2739 | -9/Scraptown | Visited Shadow of the Wyrm 2838 | -9/Scraptown | Visited Scrapoid Pod Storage 2926 | -9/Scraptown | Visited Awakened 2963 | -9/Scraptown | Visited Comm Corps 3014 | -9/Scraptown | Discovered new exit (range 7) 3036 | -9/Scraptown | Heard Great Nut preacher, LISTEN AND RECITE! 3368 | -9/Scraptown | Visited Cave Peace 3427 | -9/Scraptown | Visited Spacefarers 3449 | -9/Scraptown | Visited The Evicted 3478 | -9/Scraptown | Visited Red Mages 3850 | -9/Scraptown | Visited Curators Association 3902 | -9/Scraptown | Visited A0-MCA Data Center 3912 | -9/Scraptown | Given an A- rating by A0-MCA 3915 | -9/Scraptown | Found A0-MCA's Component Scanner 3947 | -9/Scraptown | Visited DA-N13 Charitable Foundation 3969 | -9/Scraptown | Found DCF Scrap (28 items) 4049 | -9/Scraptown | Visited Scrap Suit Storage 4080 | -9/Scraptown | Visited Junk Repository 4184 | -9/Scraptown | Visited Derelict Rescue Squad 4198 | -9/Scraptown | Visited Sword Containment 4214 | -9/Scraptown | Visited Chapter 10 4247 | -9/Scraptown | Build established: Derelict-Mutant 4255 | -9/Scraptown | Found Scrapoid Pod 4475 | -9/Scraptown | Met Optimus 4475 | -9/Scraptown | Accepted into 0bPrime 4580 | -9/Scraptown | Discovered new exit (range 5) 4582 | -9/Scraptown | Civil war broke out across Scraptown 4584 | -9/Scraptown | Entered Factory 4584 | -6/Factory | Evolved 8 slots: Power x1, Propulsion x2, Utility x5 4861 | -6/Factory | Loaded intel: 8 recycling unit locations 5038 | -6/Factory | Identified exit to Lower Caves 5292 | -6/Factory | Entered Lower Caves 5459 | -6/Lower Caves | Build established: Mutant 5474 | -6/Lower Caves | Learned Factory emergency access door positions 5496 | -6/Lower Caves | Entered an active Warlord outpost 5515 | -6/Lower Caves | Learned 8 Research zone layouts 5515 | -6/Lower Caves | Learned Armory garrison access intel 5621 | -6/Lower Caves | Attracted the attention of an 0b10 outpost 5790 | -6/Lower Caves | Lost 4 parts (3n1w) 6143 | -6/Lower Caves | Build established: Scavenger-Mutant 6208 | -6/Lower Caves | Discovered new exit (range 5) 6228 | -6/Lower Caves | Entered another Lower Caves area 6299 | -6/Lower Caves | Discovered new exit (range 7) 6333 | -6/Lower Caves | Entered Factory 6333 | -5/Factory | Evolved 2 slots: Utility x2 6680 | -5/Factory | Identified exit to Upper Caves 6827 | -5/Factory | Discovered new exit (range 11) 6837 | -5/Factory | Entered Upper Caves 6870 | -5/Upper Caves | Attracted the attention of an 0b10 outpost 7030 | -5/Upper Caves | Build established: Derelict-Mutant 7120 | -5/Upper Caves | Lost 12 parts (2p4n4u2w) 7155 | -5/Upper Caves | Learned Factory interactive machine intel 7334 | -5/Upper Caves | Build established: Mutant 7421 | -5/Upper Caves | Attracted the attention of an 0b10 checkpoint 7492 | -5/Upper Caves | Discovered new exit (range 12) 7549 | -5/Upper Caves | Entered another Upper Caves area 7613 | -5/Upper Caves | Destroyed 8 combat bots 7640 | -5/Upper Caves | Discovered new exit (range 5) 7650 | -5/Upper Caves | Entered Factory 7650 | -4/Factory | Evolved 2 slots: Utility x2 7651 | -4/Factory | Loaded intel: 56 interactive machine locations 7867 | -4/Factory | Core integrity fell below 50% 7867 | -4/Factory | Released all parts (4) 7872 | -4/Factory | Core integrity fell below 20% 7873 | -4/Factory | Destroyed by H-77 Assassin with Coil Gun Last Messages --------------- 07857_ Critical hit (Burn: +37). 07858_ Antimatter Reactor destroyed. 07858_ Penetrated by Slug. 07861_ Imp. Weapon Cycler destroyed. 07861_ Slug penetrates Wall. 07865_ Slug penetrates Subcomponent Replicator. 07865_ Slug penetrates Wall. 07865_ S-27 Virus destroyed. 07865_ Neutron Cannon destroyed. 07866_ Lyr. Light Armor Plating destroyed. 07867_ Released Adv. Targeting Computer. 07867_ Released A0-MCA's Component Scanner. 07867_ Released Adv. Visual Processing Unit. 07867_ Released 0b10 Decoder Chip [Skirmisher]. 07868_ Slug penetrates Subcomponent Replicator. 07868_ Penetrated by Slug. 07870_ U-05 Engineer builds a Wall. 07872_ Slug penetrates Wall. 07873_ R-10 Processor collects VTOL Module. 07873_ Penetrated by Slug. Map ----- +----------------------------------------------------+ | ???????????????????################ # | | ??""?""??????????? / " | | ??""S""??????????? ####### " | | ??""""???????????? #?????# " | | ?????????????????? #?????# | | ?????????????????? #?????# " | | ???????????????????#####+############ ###?????# " | | ????????????????????????????????????# #???????# " | | ????????????????????????????????????# #???????# ? | | ????????????????????????????????????# #???????#??? | | ????????????????????????????????????# ############ | | ????????????????????????????????????# | | ????????????????????????????????????# ########## | | ????????????????????????????????????# #????????? | | ????????????????????????????????????# #????????? | | ????????????????????????????????????# #????????? | | ????????????????????????????????????# #????????? | | ????????????????????????????????????# #????????? | | ????????????????????????????????????# #????????? | | ????????????????????????????????????# #????????? | | ?????????????????????????????######## #????????? | | ???????????????????########### #????????? | | ???????????????????# g # ########## | | ???????????????????# s=g # | | ???????????????????# *gg # ########## | | ???????????????????# @g%=# #????????? | | ???????????????????# hgh# ##????????? | | ???????????????????# " R #?????????? | | ???????????????????# """ " # ### #?????????? | | "??????????????????# """"" # #?# #?????????? | | "??????????????????############+##?# #?????????? | | "??????????????????????# #?# #?????????? | | ???????????????????????# #?# #?????????? | | ???????????????????????# #?# #?????????? | | ???????????????????????# #?# #?????????? | | ???????????????????????# " " " " ### ###???????? | | ???????????????????????# " " " " # #???????? | | ???????????????????????# " " " " + #???????? | | ?""????????????????????# " " " " # #???????? | | ?Y"????????????????????# " " " " + #???????? | | ?""????????????????????# " " " " # #???????? | | ???????????????????????# " " " " # #???????? | | ???????????????????????# " " " " # #???????? | | ???????????????????????# " " " " ####+####???????? | | ???????????????????????# #? ?????????? | | ???????????????????????# # """" #???????? | | ???????????????????????# # """" #?""????? | | ???????????????????????########### """" #?""????? | | ?????????????????????????????????# """" #?"T????? | | ?????????????????????????????????# #?""????? | +----------------------------------------------------+ Best States ------------- Heat Dissipation 54 Energy Generation 28 Energy Capacity 390 Matter Stores 300 Matter Capacity 300 Sight Range 20 Terrain Scan Range 16 Terrain Scan Density 10 Jamming Range 14 Cloak Strength 3 Additional Mass Support 6 Armor Coverage 400 Resistance: EM 15 Utility Shielding 33 Evasion (%) 70 Targeting Accuracy 8 Recoil Reduction 2 Item Schematics ----------------- Imp. Signal Interpreter | -6/Factory | Scanalyzed Robot Schematics ------------------ None Fabricated ------------ Nothing Repaired ---------- Nothing Alien Tech Used ----------------- None Achievements -------------- None Challenges ------------ None Game ------ Seed ArcThermoelectricInjector Manual? 0 Play Time 02:20:42 Cumulative 38.7 hours Start 2025.06.01 @ 23:42:55 End 2025.06.02 @ 23:30:51 Sessions 3 Manual Loads 0 Difficulty Rogue Special Mode None Game No. 30 Rogue 30 Adventurer 0 Explorer 0 Win Type - Total 0 Types 0/0/0/0/0/0/0/0/0/0 Lore% 21 Gallery% 28 Achievement% 28 Wizard Run 0 Options --------- Layout 1 ASCII 0 Keyboard 0 Movement Mouse Keybinds 0 Fullscreen 2 Font 32/SmallcapsGlow Map View 77x35 Zoom Use 0% Tactical HUD 1 Map Filters NONE Filters NONE Steam 1 RUN: 703e71e6-b4c6-4915-b24c-3a9752768d3b